{"text_format":"1","workbook":"xlsx","n_sheets":3,"sheets":["Einfuehrung","ROI_Modell_A","ROI_Modell_L"],"not_rendered":{"charts":0,"images":2,"macros":1,"external_links":0,"defined_names":92,"comments":2,"pivot_tables":0},"unopened":[],"bounds":{"document_bytes":16777216,"sheet_cells":100000,"rows_first":2000,"rows_last":500,"rows_between":2000,"halvings":0,"cell_chars":16384,"cell_head_chars":4096},"cells_cut":0,"cells_raw":0,"read":"whole","date_system":"1900"}

{"sheet":"Einfuehrung","index":0,"n_rows":38,"n_cols":11,"rows_kept":38,"cut":false,"hidden":false,"merged":[[3,10,3,11]]}
[]
[null,"Prof. Dr. sc. Siegfried von Känel"]
[null,"Wirtschaftskybernetische Modelle"]
[null,"Fallbeispiel: ROI-Modelle (Du-Pont-Modell)",null,null,null,null,null,null,null,null,"NoName"]
[]
[]
[]
[null,null,"1. Einführung"]
[]
[null,null,"Das Du-Pont-Kennzahlensystem ist ein weltweit bekanntes System von Unternehmenskennzahlen, welches"]
[null,null,"sowohl im Rahmen der Ex-post-Analyse (rückschauende Analyse) als auch im Rahmen der Ex-ante-Analyse "]
[null,null,"(Erklärung zukünftiger Entwicklungen) genutzt wird."]
[null,null,"Im Zentrum dieses Kennzahlensystems steht die Kennzahl \"ROI\" (Return on Investment), die inhaltlich der"]
[null,null,"Kennzahl „Gesamtkapitalrentabilität“ (Symbol: gkr [% p. a.]) entspricht."]
[null,null,"Mit der Bildung und Analyse der Kennzahl ROI wird darauf orientiert, einen höchstmöglichen Gewinn je"]
[null,null,"eingesetzter Kapitaleinheit zu erreichen."]
[null,null,"In der obersten Ebene wird die Kennzahl ROI durch die multiplikative Verknüpfung der Kennzahl \"Umsatz-"]
[null,null,"rentabilität“ (Symbol: ur [%]) und der Kennzahl \"Umschlagszahl des Kapitals“ (Symbol: uz [-/a] gebildet."]
[]
[]
[]
[]
[]
[]
[]
[]
[]
[]
[]
[]
[]
[]
[null,null,"Dieses Kennzahlensystem ist - im Hinblick auf einen Erkenntnisgewinn - erst dann von praktischem Interesse, "]
[null,null,"wenn auf der Grundlage einer detaillierteren Modelldarstellung interessierende Ursache-Wirkung-Zusammenhänge"]
[null,null,"\"durchgespielt\" (simuliert) werden können, um anhand der Simulationsergebnisse Schlussfolgerungen für die"]
[null,null,"Steuerung des Geschäftsbetriebes eines Unternehmens abzuleiten."]
[null,null,"Unter diesem Aspekt wird die obige Darstellung des Du-Pont-Kennzahlensystems in ein detaillierteres Block-"]
[null,null,"schaltbild umgesetzt und dabei zugleich rechenfähig gemacht."]

{"sheet":"ROI_Modell_A","index":1,"n_rows":47,"n_cols":15,"rows_kept":47,"cut":false,"hidden":false,"merged":[[30,5,30,7],[36,5,36,7],[46,10,46,11]]}
[]
[null,{"$f":"Einfuehrung!B2","v":"Prof. Dr. sc. Siegfried von Känel"}]
[null,{"$f":"Einfuehrung!B3","v":"Wirtschaftskybernetische Modelle"}]
[null,{"$f":"Einfuehrung!B4","v":"Fallbeispiel: ROI-Modelle (Du-Pont-Modell)"}]
[]
[]
[null,null,"2. Blockschaltbild"]
[null,null,"Aufgabe 1:","Ermitteln Sie die fehlenden Werte, indem Sie in die jeweiligen Zellen die Berechnungsformel einsetzen!"]
[null,null,null,"Beginnen Sie mit der Ermittlung der Leistung L !"]
[]
[null,null,"Änderung der Werte"]
[null,null,null,null,null,null,"kp =",{"$f":"I12/10","v":3.5},35]
[]
[null,null,null,null,null,null,null,null,null,null,null,null,"m =",{"$f":"m_01/100","v":1},100]
[]
[null,null,"Kapital C"]
[null,null,1200,null,null,null,null,null,null,null,"Leistung L"]
[null,null,"[1000 EUR]"]
[]
[]
[]
[null,null,null,null,null,null,"ks =  ",90]
[null,null,null,null,null,null,null,"Kostensatz",null,null,null,null,null,null,"Umsatz U"]
[]
[null,null,null,null,null,null,null,null,null,null,null,"Kosten K","-","+"]
[]
[]
[]
[]
[]
[null,null,null,null,null,"Umschlagszahl",null,null,null,null,null,null,null,null,"Gewinn G"]
[]
[null,null,null,null,null,null," uz =  ",null,null,"[-/a]"]
[]
[]
[]
[null,null,null,null,null,"Umsatzrentabilität"]
[]
[null,null,null,null,null,null," ur =  ",null,null,"[%]"]
[]
[]
[]
[]
[null,null,null,null,null,null," ROI =",null,null,"[% p. a.]","d = ",null," Jahre"]
[]
[]
[null,null,null,null,null,null,"Ziel:",40,"[% p. a.]",null,"Abweichung =",null,null," %  p. a."]

{"sheet":"ROI_Modell_L","index":2,"n_rows":47,"n_cols":15,"rows_kept":47,"cut":false,"hidden":false,"merged":[[30,5,30,7],[36,5,36,7],[46,10,46,11]]}
[]
[null,{"$f":"Einfuehrung!B2","v":"Prof. Dr. sc. Siegfried von Känel"}]
[null,{"$f":"Einfuehrung!B3","v":"Wirtschaftskybernetische Modelle"}]
[null,{"$f":"Einfuehrung!B4","v":"Fallbeispiel: ROI-Modelle (Du-Pont-Modell)"}]
[]
[]
[null,null,"2. Blockschaltbild"]
[null,null,"Eine mögliche Musterlösung."]
[]
[]
[null,null,"Änderung der Werte"]
[null,null,null,null,null,null,"kp =",{"$f":"I12/10","v":3.5},35]
[]
[null,null,null,null,null,null,null,null,null,null,null,null,"m =",{"$f":"m_01/100","v":1},100]
[]
[null,null,"Kapital C"]
[null,null,1200,null,null,null,null,null,null,null,"Leistung L"]
[null,null,"[1000 EUR]",null,null,null,null,null,null,null,{"$f":"C0_1*kp_1","v":4200}]
[]
[]
[]
[null,null,null,null,null,null,"ks =  ",90]
[null,null,null,null,null,null,null,"Kostensatz",null,null,null,null,null,{"$f":"L_1*m_11","v":4200},"Umsatz U"]
[]
[null,null,null,null,null,null,null,null,null,null,null,"Kosten K","-","+"]
[null,null,null,null,null,null,null,null,null,null,null,{"$f":"L_1*ks_1/100","v":3780}]
[]
[]
[]
[]
[null,null,null,null,null,"Umschlagszahl",null,null,null,null,null,null,null,{"$f":"U_11-K_1","v":420},"Gewinn G"]
[null,null,null,null,null,null,null,{"$f":"U_11","v":4200}]
[null,null,null,null,null,null," uz =  ",null,{"$f":"U_1/C_11","v":3.5},"[-/a]"]
[null,null,null,null,null,null,null,{"$f":"C0_1","v":1200}]
[]
[]
[null,null,null,null,null,"Umsatzrentabilität"]
[null,null,null,null,null,null,null,{"$f":"G_11","v":420}]
[null,null,null,null,null,null," ur =  ",null,{"$f":"G_1*100/U_21","v":10},"[%]"]
[null,null,null,null,null,null,null,{"$f":"U_11","v":4200}]
[]
[]
[null,null,null,null,null,null,null,{"$f":"G_11","v":420}]
[null,null,null,null,null,null," ROI =",null,{"$f":"G_21*100/C_21","v":35},"[% p. a.]","d = ",{"$f":"100/ROI_1","v":2.8571428571428572}," Jahre"]
[null,null,null,null,null,null,null,{"$f":"C0_1","v":1200}]
[]
[null,null,null,null,null,null,"Ziel: ",40,"[% p. a.]",null,"Abweichung =",null,{"$f":"ROI_1-ROI_Ziel_1","v":-5}," %  p. a."]